fUST/lending_fUST_20250129
["ID","MTS","AMOUNT","RATE_DAILY","PERIOD"]
[350755958,1738108256526,-500.0,0.00017123,2]
[350755959,1738108256535,-337.64829591,0.00017123,2]
[350755960,1738108256547,-383.63085224,0.00017123,2]
[350755961,1738108256556,-500.0,0.00017123,2]
[350755962,1738108256566,-803.67,0.00017123,2]
[350755963,1738108256575,-906.67,0.00017123,2]
[350755964,1738108256586,-531.45497688,0.00017123,2]
[350755965,1738108256595,-500.0,0.00017123,2]
[350755966,1738108256604,-500.0,0.00017123,2]
[350755967,1738108256614,-500.0,0.00017123,2]
[350755968,1738108256623,-1737.47,0.00017123,2]
[350755969,1738108256633,-4228.25,0.00017123,2]
[350755970,1738108256642,-869.77,0.00017123,2]
[350755971,1738108256652,-5407.54,0.00017123,2]
[350755972,1738108256662,-2343.47,0.00017123,2]
[350755973,1738108256671,-500.0,0.00017123,2]
[350755974,1738108256681,-729.07,0.00017123,2]
[350755975,1738108256690,-2039.8,0.00017123,2]
[350755976,1738108256699,-844.26,0.00017123,2]
[350755977,1738108256709,-500.0,0.00017123,2]
[350755978,1738108256719,-500.0,0.00017123,2]
[350755979,1738108256729,-500.0,0.00017123,2]
[350755980,1738108256739,-355.28982441,0.00017123,2]
[350755981,1738108256748,-500.0,0.00017123,2]
[350755982,1738108256758,-500.0,0.00017123,2]
[350755983,1738108256768,-500.0,0.00017123,2]
[350755984,1738108256778,-866.88,0.00017123,2]
[350755985,1738108256787,-769.88,0.00017123,2]
[350755986,1738108256797,-500.0,0.00017123,2]
[350755987,1738108256808,-512.06,0.00017123,2]
[350755988,1738108256818,-616.25,0.00017123,2]
[350755989,1738108256828,-2034.83,0.00017123,2]
[350755990,1738108256838,-7843.08,0.00017123,2]
[350755991,1738108256847,-500.0,0.00017123,2]
[350755992,1738108256857,-4115.64,0.00017123,2]
[350755993,1738108256867,-729.32055218,0.00017148,2]
[350755994,1738108256877,-151.0,0.000172,2]
[350755995,1738108256886,-1519.49331958,0.00017247,2]
[350755996,1738108256895,-500.0,0.0001726,2]
[350755997,1738108256905,-500.0,0.0001726,2]
[350755998,1738108256915,-522.0,0.0001726,2]
[350755999,1738108256925,-500.0,0.0001726,2]
[350756000,1738108256935,-801.41779048,0.0001726,2]
[350756001,1738108256944,-150.14,0.0001726,2]
[350756002,1738108256954,-150.14,0.0001726,2]
[350756003,1738108256964,-150.14,0.0001726,2]
[350756004,1738108256974,-593.1007218,0.0001726,2]
[350756005,1738108256984,-816.0,0.0001726,2]
[350756006,1738108256993,-684.4,0.0001726,2]
[350756007,1738108257002,-500.0,0.0001726,2]
[350756008,1738108257012,-795.09,0.0001726,2]
[350756009,1738108257022,-694.68,0.0001726,2]
[350756010,1738108257032,-500.0,0.0001726,2]
[350756011,1738108257041,-500.0,0.0001726,2]
[350756012,1738108257127,-500.0,0.0001726,2]
[350756013,1738108257137,-500.0,0.0001726,2]
[350756014,1738108257147,-500.0,0.0001726,2]
[350756015,1738108257156,-500.0,0.0001726,2]
[350756016,1738108257166,-500.0,0.0001726,2]
[350756017,1738108257178,-575.12,0.0001726,2]
[350756018,1738108257189,-500.0,0.0001726,2]
[350756019,1738108257199,-500.0,0.0001726,2]
[350756020,1738108257208,-541.73,0.0001726,2]
[350756021,1738108257218,-500.0,0.0001726,2]
[350756022,1738108257228,-500.0,0.0001726,2]
[350756023,1738108257239,-242.66782801,0.0001726,2]
[350756024,1738108257251,-1820.17,0.0001726,2]
[350756025,1738108257261,-975.11,0.0001726,2]
[350756026,1738108257271,-3240.78,0.0001726,2]
[350756027,1738108257282,-500.0,0.0001726,2]
[350756028,1738108257291,-601.0,0.0001726,2]
[350756029,1738108257302,-5392.39,0.0001726,2]
[350756030,1738108257311,-23189.19,0.0001726,2]
[350756031,1738108257321,-2191.7,0.0001726,2]
[350756032,1738108257330,-859.59,0.0001726,2]
[350756033,1738108257340,-1205.6,0.0001726,2]
[350756034,1738108257349,-500.0,0.0001726,2]
[350756035,1738108257359,-746.87,0.0001726,2]
[350756036,1738108257368,-500.0,0.0001726,2]
[350756037,1738108257379,-500.0,0.0001726,2]
[350756038,1738108257389,-500.0,0.0001726,2]
[350756039,1738108257398,-803.67,0.0001726,2]
[350756040,1738108257409,-906.67,0.0001726,2]
[350756041,1738108257419,-500.0,0.0001726,2]
[350756042,1738108257430,-500.0,0.0001726,2]
[350756043,1738108257440,-1737.47,0.0001726,2]
[350756044,1738108257450,-4228.25,0.0001726,2]
[350756045,1738108257460,-869.77,0.0001726,2]
[350756046,1738108257470,-5407.54,0.0001726,2]
[350756047,1738108257480,-2343.47,0.0001726,2]
[350756048,1738108257491,-500.0,0.0001726,2]
[350756049,1738108257501,-729.07,0.0001726,2]
[350756050,1738108257511,-2039.8,0.0001726,2]
[350756051,1738108257521,-844.26,0.0001726,2]
[350756052,1738108257530,-500.0,0.0001726,2]
[350756053,1738108257540,-500.0,0.0001726,2]
[350756054,1738108257550,-500.0,0.0001726,2]
[350756055,1738108257560,-500.0,0.0001726,2]
[350756056,1738108257571,-500.0,0.0001726,2]
[350756057,1738108257581,-500.0,0.0001726,2]
[350756058,1738108257591,-866.88,0.0001726,2]
[350756059,1738108257601,-769.88,0.0001726,2]
[350756060,1738108257611,-500.0,0.0001726,2]
[350756061,1738108257621,-512.06,0.0001726,2]
[350756062,1738108257631,-616.25,0.0001726,2]
[350756063,1738108257641,-2034.83,0.0001726,2]
[350756064,1738108257651,-7843.08,0.0001726,2]
[350756065,1738108257662,-554.89607869,0.0001726,2]
[350756066,1738108257672,-4115.64,0.0001726,2]
[350756067,1738108257682,-224.0,0.00017267,2]
[350756068,1738108257692,-151.0,0.000173,2]
[350756069,1738108257702,-224.20547008,0.00017321,2]
[350756070,1738108257711,-500.0,0.00017321,2]
[350756071,1738108257722,-1000.0,0.00017321,2]
[350756072,1738108257732,-816.0,0.00017397,2]
[350756073,1738108257742,-684.4,0.00017397,2]
[350756074,1738108257753,-500.0,0.00017397,2]
[350756075,1738108257763,-795.09,0.00017397,2]
[350756076,1738108257773,-694.68,0.00017397,2]
[350756077,1738108257782,-500.0,0.00017397,2]
[350756078,1738108257791,-515.7590582,0.00017397,2]
[350756079,1738108257800,-500.0,0.00017397,2]
[350756080,1738108257810,-554.58106052,0.00017397,2]
[350756081,1738108257821,-500.0,0.00017397,2]
[350756082,1738108257831,-500.0,0.00017397,2]
[350756083,1738108257841,-500.0,0.00017397,2]
[350756084,1738108257851,-559.72260933,0.00017397,2]
[350756085,1738108257860,-500.0,0.00017397,2]
[350756086,1738108257870,-541.73,0.00017397,2]
[350756087,1738108257880,-500.0,0.00017397,2]
[350756088,1738108257889,-500.0,0.00017397,2]
[350756089,1738108257899,-1820.17,0.00017397,2]
[350756090,1738108257909,-975.11,0.00017397,2]
[350756091,1738108257919,-3240.78,0.00017397,2]
[350756092,1738108257930,-500.0,0.00017397,2]
[350756093,1738108257940,-601.0,0.00017397,2]
[350756094,1738108257949,-5392.39,0.00017397,2]
[350756095,1738108257959,-23189.19,0.00017397,2]
[350756096,1738108257968,-2191.7,0.00017397,2]
[350756097,1738108257977,-859.59,0.00017397,2]
[350756098,1738108257987,-1205.6,0.00017397,2]
[350756099,1738108257996,-500.0,0.00017397,2]
[350756100,1738108258006,-746.87,0.00017397,2]
[350756101,1738108258016,-500.0,0.00017397,2]
[350756102,1738108258025,-500.0,0.00017397,2]
[350756103,1738108258035,-500.0,0.00017397,2]
[350756104,1738108258045,-803.67,0.00017397,2]
[350756105,1738108258054,-906.67,0.00017397,2]
[350756106,1738108258064,-361.12331457,0.00017397,2]
[350756107,1738108258074,-500.0,0.00017397,2]
[350756108,1738108258085,-1737.47,0.00017397,2]
[350756109,1738108258095,-4228.25,0.00017397,2]
[350756110,1738108258105,-869.77,0.00017397,2]
[350756111,1738108258115,-5407.54,0.00017397,2]
[350756112,1738108258126,-2343.47,0.00017397,2]
[350756113,1738108258136,-500.0,0.00017397,2]
[350756114,1738108258146,-729.07,0.00017397,2]
[350756115,1738108258155,-2039.8,0.00017397,2]
[350756116,1738108258165,-844.26,0.00017397,2]
[350756117,1738108258177,-500.0,0.00017397,2]
[350756118,1738108258187,-500.0,0.00017397,2]
[350756119,1738108258197,-500.0,0.00017397,2]
[350756120,1738108258207,-500.0,0.00017397,2]
[350756121,1738108258217,-500.0,0.00017397,2]
[350756122,1738108258227,-866.88,0.00017397,2]
[350756123,1738108258237,-769.88,0.00017397,2]
[350756124,1738108258249,-500.0,0.00017397,2]
[350756125,1738108258258,-512.06,0.00017397,2]
[350756126,1738108258269,-616.25,0.00017397,2]
[350756127,1738108258279,-2034.83,0.00017397,2]
[350756128,1738108258290,-7843.08,0.00017397,2]
[350756129,1738108258300,-4115.64,0.00017397,2]
[350756130,1738108258310,-151.0,0.000174,2]
[350756131,1738108258400,-621.0,0.000175,2]
[350756132,1738108258418,-730.09098053,0.00017534,2]
[350756133,1738108258428,-526.82782198,0.00017534,2]
[350756134,1738108258439,-522.0,0.00017534,2]
[350756135,1738108258450,-500.0,0.00017534,2]
[350756136,1738108258460,-150.14,0.00017534,2]
[350756137,1738108258470,-151.01612018,0.00017534,2]
[350756138,1738108258481,-150.14,0.00017534,2]
[350756139,1738108258491,-816.0,0.00017534,2]
[350756140,1738108258501,-684.4,0.00017534,2]
[350756141,1738108258512,-500.0,0.00017534,2]
[350756142,1738108258523,-795.09,0.00017534,2]
[350756143,1738108258534,-694.68,0.00017534,2]
[350756144,1738108258544,-500.0,0.00017534,2]
[350756145,1738108258554,-500.0,0.00017534,2]
[350756146,1738108258564,-500.0,0.00017534,2]
[350756147,1738108258574,-360.80064664,0.00017534,2]
[350756148,1738108258583,-500.0,0.00017534,2]
[350756149,1738108258594,-500.0,0.00017534,2]
[350756150,1738108258604,-541.73,0.00017534,2]
[350756151,1738108258614,-500.0,0.00017534,2]
[350756152,1738108258623,-500.0,0.00017534,2]
[350756153,1738108258634,-1820.17,0.00017534,2]
[350756154,1738108258644,-975.11,0.00017534,2]
[350756155,1738108258653,-3240.78,0.00017534,2]
[350756156,1738108258663,-500.0,0.00017534,2]
[350756157,1738108258673,-601.0,0.00017534,2]
[350756158,1738108258682,-5392.39,0.00017534,2]
[350756159,1738108258691,-23189.19,0.00017534,2]
[350756160,1738108258702,-2191.7,0.00017534,2]
[350756161,1738108258711,-859.59,0.00017534,2]
[350756162,1738108258720,-1205.6,0.00017534,2]
[350756163,1738108258730,-500.0,0.00017534,2]
[350756164,1738108258740,-746.87,0.00017534,2]
[350756165,1738108258749,-500.0,0.00017534,2]
[350756166,1738108258759,-500.0,0.00017534,2]
[350756167,1738108258768,-500.0,0.00017534,2]
[350756168,1738108258778,-803.67,0.00017534,2]
[350756169,1738108258788,-906.67,0.00017534,2]
[350756170,1738108258798,-500.0,0.00017534,2]
[350756171,1738108258807,-1737.47,0.00017534,2]
[350756172,1738108258817,-4228.25,0.00017534,2]
[350756173,1738108258827,-869.77,0.00017534,2]
[350756174,1738108258837,-5407.54,0.00017534,2]
[350756175,1738108258847,-2343.47,0.00017534,2]
[350756176,1738108258857,-500.0,0.00017534,2]
[350756177,1738108258866,-729.07,0.00017534,2]
[350756178,1738108258876,-2039.8,0.00017534,2]
[350756179,1738108258886,-844.26,0.00017534,2]
[350756180,1738108258895,-214.90202485,0.00017534,2]
[350756181,1738108258904,-500.0,0.00017534,2]
[350756182,1738108258914,-500.0,0.00017534,2]
[350756183,1738108258924,-500.0,0.00017534,2]
[350756184,1738108258933,-500.0,0.00017534,2]
[350756185,1738108258943,-866.88,0.00017534,2]
[350756186,1738108258952,-769.88,0.00017534,2]
[350756187,1738108258962,-480.58927066,0.00017534,2]
[350756188,1738108258971,-512.06,0.00017534,2]
[350756189,1738108258981,-616.25,0.00017534,2]
[350756190,1738108258990,-2034.83,0.00017534,2]
[350756191,1738108259000,-7843.08,0.00017534,2]
[350756192,1738108259009,-4115.64,0.00017534,2]
[350756193,1738108259019,-288.0,0.0001756,2]
[350756194,1738108259028,-700.0,0.00017564,2]
[350756195,1738108259037,-151.0,0.000176,2]
[350756196,1738108259046,-816.0,0.00017671,2]
[350756197,1738108259056,-684.4,0.00017671,2]
[350756198,1738108259065,-500.0,0.00017671,2]
[350756199,1738108259075,-795.09,0.00017671,2]
[350756200,1738108259085,-694.68,0.00017671,2]
[350756201,1738108259095,-500.0,0.00017671,2]
[350756202,1738108259104,-88.56444377,0.00017671,2]
[350756203,1738108372290,230.602354,0.00013973,2]
[350756246,1738109431929,-291.706,0.00015445,2]
[350756248,1738109431939,-300.0,0.00015469,2]
[350756250,1738109431950,-14835.15602623,0.0001547,2]
[350756254,1738109431983,-1044.45220149,0.0001547,2]
[350756257,1738109431995,-5154.8107125,0.0001547,2]
[350756259,1738109432007,-457.79315807,0.0001547,2]
[350756261,1738109432019,-2731.57530867,0.0001547,2]
[350756263,1738109432031,-360.41287851,0.0001547,2]
[350756271,1738109432095,-315.79971453,0.0001547,2]
[350756273,1738109432105,-240.187484,0.00015479,2]
[350756275,1738109432115,-1321.07000903,0.00016337,2]
[350756276,1738109432125,-233.334,0.000164,2]
[350756278,1738109432135,-25898.57434668,0.00016401,2]
[350756280,1738109432145,-327.22204864,0.00016437,2]
[350756282,1738109432155,-500.0,0.00016437,2]
[350756284,1738109432165,-500.0,0.00016437,2]
[350756285,1738109432174,-500.0,0.00016437,2]
[350756287,1738109432183,-500.0,0.00016437,2]
[350756290,1738109432194,-500.0,0.00016437,2]
[350756291,1738109432203,-250.0,0.00016437,2]
[350756293,1738109432212,-500.0,0.00016437,2]
[350756295,1738109432221,-500.0,0.00016437,2]
[350756297,1738109432231,-500.0,0.00016437,2]
[350756298,1738109432240,-159.82098051,0.00016437,2]
[350756300,1738109432250,-500.0,0.00016437,2]
[350756302,1738109432259,-500.0,0.00016437,2]
[350756304,1738109432269,-500.0,0.00016437,2]
[350756306,1738109432278,-500.0,0.00016437,2]
[350756308,1738109432287,-484.02192192,0.00016437,2]
[350756310,1738109432296,-499.99999999,0.00016437,2]
[350756312,1738109432306,-475.88172886,0.00016437,2]
[350756314,1738109432316,-126.27698489,0.00016438,2]
[350756324,1738109432407,-390.6631946,0.00016438,2]
[350756325,1738109432418,-320.09970471,0.00016438,2]
[350756326,1738109432428,-400.3949716,0.00016438,2]
[350756327,1738109432438,-500.0,0.00016438,2]
[350756328,1738109432448,-500.0,0.00016438,2]
[350756329,1738109432458,-500.0,0.00016438,2]
[350756330,1738109432467,-500.0,0.00016438,2]
[350756331,1738109432477,-500.0,0.00016438,2]
[350756332,1738109432487,-500.0,0.00016438,2]
[350756333,1738109432496,-500.0,0.00016438,2]
[350756334,1738109432506,-500.0,0.00016438,2]
[350756335,1738109432516,-500.0,0.00016438,2]
[350756336,1738109432526,-500.0,0.00016438,2]
[350756337,1738109432538,-500.0,0.00016438,2]
[350756338,1738109432547,-500.0,0.00016438,2]
[350756339,1738109432557,-500.0,0.00016438,2]
[350756340,1738109432566,-500.0,0.00016438,2]
[350756341,1738109432575,-500.0,0.00016438,2]
[350756342,1738109432586,-500.0,0.00016438,2]
[350756343,1738109432595,-500.0,0.00016438,2]
[350756344,1738109432604,-500.0,0.00016438,2]
[350756346,1738109432615,-500.0,0.00016438,2]
[350756347,1738109432625,-500.0,0.00016438,2]
[350756349,1738109432634,-500.0,0.00016438,2]
[350756352,1738109432650,-500.0,0.00016438,2]
[350756354,1738109432659,-298.37255857,0.00016438,2]
[350756356,1738109432670,-439.87867522,0.00016438,2]
[350756358,1738109432679,-500.0,0.00016438,2]
[350756360,1738109432689,-500.0,0.00016438,2]
[350756362,1738109432698,-500.0,0.00016438,2]
[350756364,1738109432708,-500.0,0.00016438,2]
[350756366,1738109432718,-646.8857,0.00016438,2]
[350756368,1738109432728,-500.0,0.00016438,2]
[350756370,1738109432738,-500.0,0.00016438,2]
[350756371,1738109432748,-500.0,0.00016438,2]
[350756385,1738109432872,-500.0,0.00016438,2]
[350756387,1738109432884,-500.0,0.00016438,2]
[350756389,1738109432894,-645.09835103,0.00016438,2]
[350756391,1738109432905,-500.0,0.00016438,2]
[350756393,1738109432915,-500.0,0.00016438,2]
[350756395,1738109432924,-500.0,0.00016438,2]
[350756397,1738109432933,-539.87425114,0.00016438,2]
[350756399,1738109432943,-500.0,0.00016438,2]
[350756401,1738109432952,-500.0,0.00016438,2]
[350756403,1738109432961,-500.0,0.00016438,2]
[350756405,1738109432972,-500.0,0.00016438,2]
[350756407,1738109432983,-500.0,0.00016438,2]
[350756409,1738109432993,-500.0,0.00016438,2]
[350756411,1738109433004,-500.0,0.00016438,2]
[350756413,1738109433013,-500.0,0.00016438,2]
[350756415,1738109433028,-247.80522044,0.00016438,2]
[350756417,1738109433044,-500.0,0.00016438,2]
[350756419,1738109433054,-500.0,0.00016438,2]
[350756421,1738109433065,-500.0,0.00016438,2]
[350756423,1738109433075,-166.95869013,0.00016438,2]
[350756425,1738109433085,-500.0,0.00016438,2]
[350756427,1738109433096,-500.0,0.00016438,2]
[350756429,1738109433107,-500.0,0.00016438,2]
[350756431,1738109433117,-500.0,0.00016438,2]
[350756433,1738109433126,-500.0,0.00016438,2]
[350756435,1738109433136,-500.0,0.00016438,2]
[350756437,1738109433153,-500.0,0.00016438,2]
[350756439,1738109433163,-500.0,0.00016438,2]
[350756441,1738109433174,-506.61802956,0.00016438,2]
[350756443,1738109433183,-500.0,0.00016438,2]
[350756445,1738109433193,-500.0,0.00016438,2]
[350756447,1738109433203,-500.0,0.00016438,2]
[350756449,1738109433213,-416.06495321,0.00016438,2]
[350756451,1738109433222,-500.0,0.00016438,2]
[350756453,1738109433233,-500.0,0.00016438,2]
[350756456,1738109433243,-500.0,0.00016438,2]
[350756457,1738109433252,-500.0,0.00016438,2]
[350756459,1738109433262,-500.0,0.00016438,2]
[350756461,1738109433272,-500.0,0.00016438,2]
[350756463,1738109433281,-500.0,0.00016438,2]
[350756465,1738109433291,-500.0,0.00016438,2]
[350756468,1738109433301,-500.0,0.00016438,2]
[350756470,1738109433311,-500.0,0.00016438,2]
[350756471,1738109433321,-508.54004725,0.00016438,2]
[350756473,1738109433330,-500.0,0.00016438,2]
[350756475,1738109433339,-500.0,0.00016438,2]
[350756477,1738109433349,-352.66670369,0.00016438,2]
[350756479,1738109433358,-500.0,0.00016438,2]
[350756481,1738109433367,-500.0,0.00016438,2]
[350756483,1738109433377,-593.48616833,0.00016438,2]
[350756485,1738109433387,-500.0,0.00016438,2]
[350756487,1738109433396,-500.0,0.00016438,2]
[350756489,1738109433406,-500.0,0.00016438,2]
[350756491,1738109433415,-500.0,0.00016438,2]
[350756493,1738109433425,-500.0,0.00016438,2]
[350756495,1738109433435,-500.0,0.00016438,2]
[350756497,1738109433444,-500.0,0.00016438,2]
[350756499,1738109433454,-500.0,0.00016438,2]
[350756502,1738109433464,-500.0,0.00016438,2]
[350756503,1738109433473,-322.34702438,0.00016438,2]
[350756964,1738109437999,-185.53554617,0.00016438,2]
[350756965,1738109438009,-500.0,0.00016438,2]
[350756968,1738109438019,-500.0,0.00016438,2]
[350756969,1738109438028,-186.48804255,0.00016438,2]
[350756971,1738109438038,-504.42385701,0.00016438,2]
[350756974,1738109438048,-500.0,0.00016438,2]
[350756975,1738109438057,-500.0,0.00016438,2]
[350756977,1738109438067,-503.24834067,0.00016438,2]
[350756979,1738109438077,-500.0,0.00016438,2]
[350756982,1738109438087,-500.0,0.00016438,2]
[350756984,1738109438097,-641.61240064,0.00016438,2]
[350756985,1738109438107,-500.0,0.00016438,2]
[350756987,1738109438117,-526.71396506,0.00016438,2]
[350756989,1738109438127,-500.0,0.00016438,2]
[350756992,1738109438137,-501.76151133,0.00016438,2]
[350756994,1738109438147,-500.0,0.00016438,2]
[350756996,1738109438157,-500.0,0.00016438,2]
[350756998,1738109438167,-500.0,0.00016438,2]
[350757000,1738109438176,-500.0,0.00016438,2]
[350757002,1738109438186,-500.0,0.00016438,2]
[350757004,1738109438196,-356.11613718,0.00016438,2]
[350757006,1738109438205,-500.0,0.00016438,2]
[350757008,1738109438215,-500.0,0.00016438,2]
[350757010,1738109438224,-500.0,0.00016438,2]
[350757012,1738109438235,-503.79210731,0.00016438,2]
[350757014,1738109438246,-500.0,0.00016438,2]
[350757016,1738109438255,-500.0,0.00016438,2]
[350757018,1738109438265,-500.0,0.00016438,2]
[350757020,1738109438275,-500.0,0.00016438,2]
[350757022,1738109438285,-500.0,0.00016438,2]
[350757024,1738109438294,-500.0,0.00016438,2]
[350757026,1738109438305,-500.0,0.00016438,2]
[350757028,1738109438315,-500.0,0.00016438,2]
[350757030,1738109438324,-500.0,0.00016438,2]
[350757032,1738109438333,-500.0,0.00016438,2]
[350757034,1738109438343,-500.0,0.00016438,2]
[350757036,1738109438353,-500.0,0.00016438,2]
[350757038,1738109438362,-500.0,0.00016438,2]
[350757040,1738109438372,-500.0,0.00016438,2]
[350757041,1738109438381,-500.0,0.00016438,2]
[350757042,1738109438390,-500.0,0.00016438,2]
[350757044,1738109438399,-500.0,0.00016438,2]
[350757046,1738109438409,-500.0,0.00016438,2]
[350757048,1738109438419,-500.0,0.00016438,2]
[350757050,1738109438428,-500.0,0.00016438,2]
[350757052,1738109438438,-500.0,0.00016438,2]
[350757054,1738109438448,-500.0,0.00016438,2]
[350757056,1738109438459,-178.28074207,0.00016438,2]
[350757058,1738109438472,-321.71925793,0.00016438,2]
[350757060,1738109438483,-500.0,0.00016438,2]
[350757062,1738109438492,-500.0,0.00016438,2]
[350757064,1738109438502,-500.0,0.00016438,2]
[350757066,1738109438512,-170.35204988,0.00016438,2]
[350757070,1738109438544,-329.64795012,0.00016438,2]
[350757072,1738109438553,-500.0,0.00016438,2]
[350757073,1738109438563,-500.0,0.00016438,2]
[350757075,1738109438572,-500.0,0.00016438,2]
[350757077,1738109438582,-500.0,0.00016438,2]
[350757079,1738109438592,-500.0,0.00016438,2]
[350757081,1738109438601,-500.0,0.00016438,2]
[350757083,1738109438611,-495.47648648,0.00016438,2]
[350757085,1738109438621,-500.0,0.00016438,2]
[350757087,1738109438631,-500.0,0.00016438,2]
[350757089,1738109438641,-500.0,0.00016438,2]
[350757091,1738109438650,-500.0,0.00016438,2]
[350757093,1738109438659,-500.0,0.00016438,2]
[350757095,1738109438669,-500.0,0.00016438,2]
[350757097,1738109438678,-500.0,0.00016438,2]
[350757099,1738109438688,-500.0,0.00016438,2]
[350757101,1738109438698,-500.0,0.00016438,2]
[350757103,1738109438708,-500.0,0.00016438,2]
[350757105,1738109438718,-500.0,0.00016438,2]
[350757107,1738109438727,-500.0,0.00016438,2]
[350757109,1738109438739,-500.0,0.00016438,2]
[350757111,1738109438748,-502.3754234,0.00016438,2]
[350757113,1738109438758,-500.0,0.00016438,2]
[350757115,1738109438767,-500.0,0.00016438,2]
[350757117,1738109438777,-536.76456273,0.00016438,2]
[350757118,1738109438786,-500.0,0.00016438,2]
[350757120,1738109438795,-500.0,0.00016438,2]
[350757122,1738109438804,-500.0,0.00016438,2]
[350757124,1738109438814,-500.0,0.00016438,2]
[350757126,1738109438823,-500.0,0.00016438,2]
[350757128,1738109438832,-167.63103314,0.00016438,2]
[350757130,1738109438842,-500.0,0.00016438,2]
[350757132,1738109438851,-500.0,0.00016438,2]
[350757134,1738109438860,-500.0,0.00016438,2]
[350757136,1738109438870,-500.0,0.00016438,2]
[350757138,1738109438879,-500.0,0.00016438,2]
[350757139,1738109438889,-500.0,0.00016438,2]
[350757141,1738109438898,-500.0,0.00016438,2]
[350757143,1738109438907,-500.0,0.00016438,2]
[350757145,1738109438917,-500.0,0.00016438,2]
[350757147,1738109438927,-500.0,0.00016438,2]
[350757149,1738109438937,-500.0,0.00016438,2]
[350757151,1738109438946,-500.0,0.00016438,2]
[350757153,1738109438956,-500.0,0.00016438,2]
[350757155,1738109438965,-500.0,0.00016438,2]
[350757157,1738109438975,-500.0,0.00016438,2]
[350757159,1738109438986,-500.0,0.00016438,2]
[350757161,1738109438995,-500.0,0.00016438,2]
[350757163,1738109439005,-500.0,0.00016438,2]
[350757165,1738109439015,-501.14,0.00016438,2]
[350757167,1738109439025,-500.0,0.00016438,2]
[350757169,1738109439035,-500.0,0.00016438,2]
[350757171,1738109439044,-500.0,0.00016438,2]
[350757173,1738109439054,-500.0,0.00016438,2]
[350757175,1738109439065,-500.0,0.00016438,2]
[350757177,1738109439075,-500.0,0.00016438,2]
[350757179,1738109439086,-500.0,0.00016438,2]
[350757181,1738109439096,-500.0,0.00016438,2]
[350757183,1738109439106,-500.0,0.00016438,2]
[350757185,1738109439116,-500.0,0.00016438,2]
[350757187,1738109439126,-500.0,0.00016438,2]
[350757188,1738109439135,-500.0,0.00016438,2]
[350757191,1738109439146,-500.0,0.00016438,2]
[350757192,1738109439156,-500.0,0.00016438,2]
[350757194,1738109439165,-500.0,0.00016438,2]
[350757196,1738109439175,-514.06068051,0.00016438,2]
[350757198,1738109439185,-557.73556449,0.00016438,2]
[350757200,1738109439195,-500.0,0.00016438,2]
[350757202,1738109439204,-500.0,0.00016438,2]
[350757204,1738109439214,-500.0,0.00016438,2]
[350757206,1738109439224,-500.0,0.00016438,2]
[350757208,1738109439235,-500.0,0.00016438,2]
[350757210,1738109439245,-5102.81,0.00016438,2]
[350757212,1738109439255,-500.0,0.00016438,2]